[Event "Titled Tuesday Blitz October 11 Late 2022"]
[White "Alexikov, Alexander"]
[Black "Le Goff, Ronan"]
[WhiteFideId "14103958"]
[BlackFideId "612073"]
[WhiteElo "2222"]
[BlackElo "2276"]
[Result "0-1"]
[Round "09"]
[TimeControl "180+1"]
[Date "2022.10.12"]
[WhiteClock "0:00:20"]
[BlackClock "0:00:41"]

1. e4 {[%clk 0:03:00]}  e5 {[%clk 0:02:59]} 2. Nf3 {[%clk 0:03:00]}  Nc6 {[%clk 0:03:00]} 3. c3 {[%clk 0:03:00]}  Nf6 {[%clk 0:03:00]} 4. d4 {[%clk 0:03:00]}  exd4 {[%clk 0:02:58]} 5. e5 {[%clk 0:02:59]}  Nd5 {[%clk 0:02:57]} 6. Bb5 {[%clk 0:02:59]}  d6 {[%clk 0:02:52]} 7. Qxd4 {[%clk 0:02:49]}  dxe5 {[%clk 0:02:51]} 8. Nxe5 {[%clk 0:02:48]}  Qd6 {[%clk 0:02:43]} 9. Nxc6 {[%clk 0:02:14]}  bxc6 {[%clk 0:02:42]} 10. Ba4 {[%clk 0:02:14]}  Qe6+ {[%clk 0:02:35]} 11. Kd1 {[%clk 0:02:05]}  Qg4+ {[%clk 0:02:26]} 12. Qxg4 {[%clk 0:02:04]}  Bxg4+ {[%clk 0:02:27]} 13. f3 {[%clk 0:02:04]}  O-O-O {[%clk 0:02:26]} 14. fxg4 {[%clk 0:01:54]}  Nxc3+ {[%clk 0:02:22]} 15. Kc2 {[%clk 0:01:53]}  Nxa4 {[%clk 0:02:22]} 16. Be3 {[%clk 0:01:50]}  Be7 {[%clk 0:02:06]} 17. Rf1 {[%clk 0:01:47]}  Bf6 {[%clk 0:02:04]} 18. Nc3 {[%clk 0:01:46]}  Nxc3 {[%clk 0:02:00]} 19. bxc3 {[%clk 0:01:45]}  Rhe8 {[%clk 0:01:59]} 20. Rae1 {[%clk 0:01:43]}  Re4 {[%clk 0:01:48]} 21. g5 {[%clk 0:01:35]}  Be5 {[%clk 0:01:37]} 22. Rxf7 {[%clk 0:01:33]}  Re8 {[%clk 0:01:30]} 23. Kd3 {[%clk 0:01:25]}  Bxh2 {[%clk 0:01:19]} 24. Rf3 {[%clk 0:01:14]}  Bd6 {[%clk 0:01:15]} 25. Ref1 {[%clk 0:01:10]}  Ra4 {[%clk 0:01:12]} 26. R1f2 {[%clk 0:01:08]}  Re5 {[%clk 0:01:10]} 27. Rf7 {[%clk 0:01:05]}  Rd5+ {[%clk 0:01:06]} 28. Kc2 {[%clk 0:01:00]}  Rxa2+ {[%clk 0:01:05]} 29. Kb1 {[%clk 0:00:59]}  Rxf2 {[%clk 0:01:03]} 30. Bxf2 {[%clk 0:00:58]}  Rxg5 {[%clk 0:01:00]} 31. Bxa7 {[%clk 0:00:55]}  Rxg2 {[%clk 0:00:59]} 32. Bd4 {[%clk 0:00:55]}  g5 {[%clk 0:00:52]} 33. Rxh7 {[%clk 0:00:54]}  g4 {[%clk 0:00:52]} 34. Rg7 {[%clk 0:00:53]}  Kb7 {[%clk 0:00:51]} 35. Kc1 {[%clk 0:00:52]}  Ka6 {[%clk 0:00:51]} 36. Kd1 {[%clk 0:00:52]}  g3 {[%clk 0:00:51]} 37. Ke1 {[%clk 0:00:51]}  Kb5 {[%clk 0:00:51]} 38. Kf1 {[%clk 0:00:51]}  Ra2 {[%clk 0:00:51]} 39. Rg5+ {[%clk 0:00:46]}  Kc4 {[%clk 0:00:51]} 40. Be5 {[%clk 0:00:46]}  Bxe5 {[%clk 0:00:48]} 41. Rxe5 {[%clk 0:00:45]}  Rf2+ {[%clk 0:00:48]} 42. Kg1 {[%clk 0:00:43]}  Rf3 {[%clk 0:00:48]} 43. Re7 {[%clk 0:00:43]}  Rxc3 {[%clk 0:00:46]} 44. Rxc7 {[%clk 0:00:42]}  Kb3 {[%clk 0:00:46]} 45. Kg2 {[%clk 0:00:42]}  c5 {[%clk 0:00:46]} 46. Rb7+ {[%clk 0:00:41]}  Kc2 {[%clk 0:00:45]} 47. Rc7 {[%clk 0:00:41]}  c4 {[%clk 0:00:46]} 48. Rc6 {[%clk 0:00:40]}  Kb3 {[%clk 0:00:44]} 49. Rb6+ {[%clk 0:00:40]}  Ka4 {[%clk 0:00:44]} 50. Rc6 {[%clk 0:00:40]}  Kb5 {[%clk 0:00:44]} 51. Rc8 {[%clk 0:00:39]}  Rd3 {[%clk 0:00:44]} 52. Rb8+ {[%clk 0:00:38]}  Ka4 {[%clk 0:00:44]} 53. Rc8 {[%clk 0:00:38]}  Kb3 {[%clk 0:00:44]} 54. Rb8+ {[%clk 0:00:38]}  Kc2 {[%clk 0:00:44]} 55. Ra8 {[%clk 0:00:32]}  c3 {[%clk 0:00:43]} 56. Ra2+ {[%clk 0:00:26]}  Kb3 {[%clk 0:00:43]} 57. Ra8 {[%clk 0:00:24]}  c2 {[%clk 0:00:42]} 58. Rb8+ {[%clk 0:00:23]}  Kc3 {[%clk 0:00:42]} 59. Kf1 {[%clk 0:00:20]}  c1=Q+ {[%clk 0:00:41]} 0-1


[Site "https://www.chess.com"]

[Event "Titled Tuesday Blitz October 11 Late 2022"]
[White "Aung Thant Zin"]
[Black "Ovezdurdyyeva, Jemal"]
[WhiteFideId "13000063"]
[BlackFideId "14001888"]
[WhiteElo "2278"]
[BlackElo "1961"]
[Result "0-1"]
[Round "09"]
[TimeControl "180+1"]
[Date "2022.10.12"]
[WhiteClock "0:00:07"]
[BlackClock "0:00:47"]

1. e4 {[%clk 0:02:55]}  d6 {[%clk 0:02:58]} 2. d4 {[%clk 0:02:54]}  Nf6 {[%clk 0:02:59]} 3. Nc3 {[%clk 0:02:53]}  g5 {[%clk 0:02:57]} 4. Bxg5 {[%clk 0:02:49]}  h6 {[%clk 0:02:54]} 5. Bxf6 {[%clk 0:02:48]}  exf6 {[%clk 0:02:54]} 6. Nf3 {[%clk 0:02:48]}  Bg4 {[%clk 0:02:54]} 7. Be2 {[%clk 0:02:46]}  Nc6 {[%clk 0:02:53]} 8. Nh4 {[%clk 0:02:43]}  Bxe2 {[%clk 0:02:50]} 9. Nxe2 {[%clk 0:02:42]}  d5 {[%clk 0:02:48]} 10. exd5 {[%clk 0:02:14]}  Qxd5 {[%clk 0:02:47]} 11. c3 {[%clk 0:02:14]}  O-O-O {[%clk 0:02:43]} 12. Qc2 {[%clk 0:02:10]}  Kb8 {[%clk 0:02:34]} 13. Qf5 {[%clk 0:02:02]}  Qc4 {[%clk 0:02:23]} 14. b3 {[%clk 0:01:05]}  Qa6 {[%clk 0:02:14]} 15. c4 {[%clk 0:01:03]}  Bb4+ {[%clk 0:02:09]} 16. Kf1 {[%clk 0:01:03]}  Nxd4 {[%clk 0:02:07]} 17. Nxd4 {[%clk 0:01:01]}  Rxd4 {[%clk 0:02:07]} 18. Nf3 {[%clk 0:00:52]}  Rd6 {[%clk 0:02:01]} 19. g3 {[%clk 0:00:44]}  Rhd8 {[%clk 0:01:58]} 20. Kg2 {[%clk 0:00:43]}  Qc6 {[%clk 0:01:57]} 21. a3 {[%clk 0:00:39]}  Bc3 {[%clk 0:01:56]} 22. Rac1 {[%clk 0:00:34]}  Rd3 {[%clk 0:01:55]} 23. b4 {[%clk 0:00:22]}  Bb2 {[%clk 0:01:53]} 24. b5 {[%clk 0:00:21]}  Qb6 {[%clk 0:01:41]} 25. Rce1 {[%clk 0:00:19]}  Bxa3 {[%clk 0:01:38]} 26. Qxd3 {[%clk 0:00:19]}  Bd6 {[%clk 0:01:32]} 27. Re4 {[%clk 0:00:16]}  f5 {[%clk 0:01:31]} 28. Re2 {[%clk 0:00:15]}  f4 {[%clk 0:01:31]} 29. Rd1 {[%clk 0:00:15]}  h5 {[%clk 0:01:26]} 30. Qd5 {[%clk 0:00:13]}  Rh8 {[%clk 0:01:17]} 31. c5 {[%clk 0:00:13]}  Qxc5 {[%clk 0:01:14]} 32. Qxc5 {[%clk 0:00:13]}  Bxc5 {[%clk 0:01:15]} 33. gxf4 {[%clk 0:00:13]}  h4 {[%clk 0:01:14]} 34. Kh3 {[%clk 0:00:14]}  a6 {[%clk 0:01:11]} 35. Ne5 {[%clk 0:00:14]}  Ka7 {[%clk 0:01:04]} 36. Nd7 {[%clk 0:00:12]}  Bd6 {[%clk 0:01:01]} 37. Rc2 {[%clk 0:00:10]}  Bxf4 {[%clk 0:00:57]} 38. Re1 {[%clk 0:00:08]}  Rd8 {[%clk 0:00:53]} 39. Re7 {[%clk 0:00:07]}  f5 {[%clk 0:00:50]} 40. Rf7 {[%clk 0:00:07]}  Bd6 {[%clk 0:00:47]} 0-1


[Site "https://www.chess.com"]

[Event "Titled Tuesday Blitz October 11 Late 2022"]
[White "Bilan, Danila"]
[Black "Bjelobrk, Igor"]
[WhiteFideId "24161918"]
[BlackFideId "4300726"]
[WhiteElo "2203"]
[BlackElo "2335"]
[Result "0-1"]
[Round "09"]
[TimeControl "180+1"]
[Date "2022.10.12"]
[WhiteClock "0:00:02"]
[BlackClock "0:01:11"]

1. d4 {[%clk 0:03:00]}  e6 {[%clk 0:02:53]} 2. Nf3 {[%clk 0:02:53]}  c5 {[%clk 0:02:48]} 3. c4 {[%clk 0:02:46]}  cxd4 {[%clk 0:02:45]} 4. Nxd4 {[%clk 0:02:47]}  Nc6 {[%clk 0:02:45]} 5. Nc3 {[%clk 0:02:46]}  Bc5 {[%clk 0:02:43]} 6. e3 {[%clk 0:02:41]}  Nf6 {[%clk 0:02:35]} 7. Be2 {[%clk 0:02:38]}  O-O {[%clk 0:02:27]} 8. O-O {[%clk 0:02:37]}  d5 {[%clk 0:02:24]} 9. cxd5 {[%clk 0:02:13]}  exd5 {[%clk 0:02:19]} 10. Nxc6 {[%clk 0:02:04]}  bxc6 {[%clk 0:02:18]} 11. b3 {[%clk 0:02:03]}  Re8 {[%clk 0:02:09]} 12. Bb2 {[%clk 0:01:57]}  Qe7 {[%clk 0:02:07]} 13. Bf3 {[%clk 0:01:33]}  Bd6 {[%clk 0:02:04]} 14. g3 {[%clk 0:01:27]}  Bh3 {[%clk 0:01:59]} 15. Bg2 {[%clk 0:01:22]}  Bg4 {[%clk 0:01:48]} 16. Bf3 {[%clk 0:01:20]}  h5 {[%clk 0:01:47]} 17. Bxg4 {[%clk 0:01:02]}  hxg4 {[%clk 0:01:45]} 18. Ne2 {[%clk 0:00:59]}  Ne4 {[%clk 0:01:40]} 19. Nd4 {[%clk 0:00:44]}  Qd7 {[%clk 0:01:39]} 20. Rc1 {[%clk 0:00:40]}  Rac8 {[%clk 0:01:36]} 21. Qe2 {[%clk 0:00:24]}  Be5 {[%clk 0:01:27]} 22. Rc2 {[%clk 0:00:22]}  Ng5 {[%clk 0:01:26]} 23. Rd1 {[%clk 0:00:16]}  Bxd4 {[%clk 0:01:25]} 24. Bxd4 {[%clk 0:00:15]}  Nf3+ {[%clk 0:01:25]} 25. Kg2 {[%clk 0:00:13]}  Qf5 {[%clk 0:01:21]} 26. h4 {[%clk 0:00:04]}  Qe4 {[%clk 0:01:13]} 27. Kf1 {[%clk 0:00:02]}  Nxd4 {[%clk 0:01:11]} 0-1


[Site "https://www.chess.com"]

[Event "Titled Tuesday Blitz October 11 Late 2022"]
[White "Clawitter, Craig"]
[Black "Dzierzak, Radoslaw"]
[WhiteFideId "2023105"]
[BlackFideId "1161407"]
[WhiteElo "2237"]
[BlackElo "2111"]
[Result "0-1"]
[Round "09"]
[TimeControl "180+1"]
[Date "2022.10.12"]
[WhiteClock "0:00:08"]
[BlackClock "0:00:34"]

1. e4 {[%clk 0:03:00]}  c5 {[%clk 0:02:59]} 2. Nf3 {[%clk 0:03:01]}  Nc6 {[%clk 0:03:00]} 3. d4 {[%clk 0:03:01]}  cxd4 {[%clk 0:03:01]} 4. Nxd4 {[%clk 0:03:02]}  Nxd4 {[%clk 0:03:01]} 5. Qxd4 {[%clk 0:03:01]}  e6 {[%clk 0:03:02]} 6. Nc3 {[%clk 0:02:58]}  a6 {[%clk 0:03:02]} 7. f4 {[%clk 0:02:55]}  b5 {[%clk 0:03:01]} 8. Be3 {[%clk 0:02:51]}  Bb7 {[%clk 0:03:01]} 9. Be2 {[%clk 0:02:45]}  Nf6 {[%clk 0:02:58]} 10. Bf3 {[%clk 0:02:44]}  Rc8 {[%clk 0:02:57]} 11. O-O {[%clk 0:02:21]}  Bc5 {[%clk 0:02:54]} 12. Qd3 {[%clk 0:02:21]}  Qb6 {[%clk 0:02:51]} 13. Rae1 {[%clk 0:02:09]}  Bxe3+ {[%clk 0:02:22]} 14. Rxe3 {[%clk 0:02:07]}  b4 {[%clk 0:02:22]} 15. Nd1 {[%clk 0:02:01]}  O-O {[%clk 0:02:15]} 16. Kh1 {[%clk 0:01:46]}  d5 {[%clk 0:02:13]} 17. e5 {[%clk 0:01:45]}  Ne4 {[%clk 0:02:09]} 18. Nf2 {[%clk 0:01:27]}  Rxc2 {[%clk 0:01:48]} 19. Nxe4 {[%clk 0:01:02]}  dxe4 {[%clk 0:01:46]} 20. Rxe4 {[%clk 0:00:56]}  Bxe4 {[%clk 0:01:41]} 21. Bxe4 {[%clk 0:00:55]}  Rf2 {[%clk 0:01:36]} 22. Bxh7+ {[%clk 0:00:45]}  Kh8 {[%clk 0:01:36]} 23. Rc1 {[%clk 0:00:26]}  g6 {[%clk 0:00:52]} 24. Bxg6 {[%clk 0:00:23]}  fxg6 {[%clk 0:00:38]} 25. Qxg6 {[%clk 0:00:22]}  Qb7 {[%clk 0:00:37]} 26. Qh6+ {[%clk 0:00:17]}  Kg8 {[%clk 0:00:37]} 27. Qxe6+ {[%clk 0:00:16]}  Qf7 {[%clk 0:00:35]} 28. Qg4+ {[%clk 0:00:13]}  Qg7 {[%clk 0:00:36]} 29. Qe6+ {[%clk 0:00:12]}  Kh8 {[%clk 0:00:35]} 30. Qh3+ {[%clk 0:00:12]}  Qh7 {[%clk 0:00:35]} 31. Rc8 {[%clk 0:00:08]}  Rf1# {[%clk 0:00:34]} 0-1


[Site "https://www.chess.com"]

[Event "Titled Tuesday Blitz October 11 Late 2022"]
[White "Curtis, John"]
[Black "Przybylski, Wojciech"]
[WhiteFideId "3200256"]
[BlackFideId "1117599"]
[WhiteElo "2203"]
[BlackElo "2221"]
[Result "0-1"]
[Round "09"]
[TimeControl "180+1"]
[Date "2022.10.12"]
[WhiteClock "0:00:07"]
[BlackClock "0:00:31"]

1. e4 {[%clk 0:03:00]}  e5 {[%clk 0:02:49]} 2. Nf3 {[%clk 0:02:59]}  Nc6 {[%clk 0:02:48]} 3. Bb5 {[%clk 0:02:59]}  Nf6 {[%clk 0:02:47]} 4. Bxc6 {[%clk 0:02:58]}  dxc6 {[%clk 0:02:42]} 5. d3 {[%clk 0:02:58]}  Bd6 {[%clk 0:02:42]} 6. Nbd2 {[%clk 0:02:56]}  O-O {[%clk 0:02:41]} 7. Nc4 {[%clk 0:02:56]}  Nd7 {[%clk 0:02:38]} 8. O-O {[%clk 0:02:47]}  Re8 {[%clk 0:02:37]} 9. Nxd6 {[%clk 0:02:42]}  cxd6 {[%clk 0:02:36]} 10. d4 {[%clk 0:02:33]}  exd4 {[%clk 0:02:27]} 11. Qxd4 {[%clk 0:02:33]}  Qf6 {[%clk 0:02:27]} 12. Rd1 {[%clk 0:02:03]}  Qxd4 {[%clk 0:02:23]} 13. Rxd4 {[%clk 0:02:01]}  Nf6 {[%clk 0:02:20]} 14. Rxd6 {[%clk 0:01:37]}  Nxe4 {[%clk 0:02:19]} 15. Rd4 {[%clk 0:01:31]}  Bg4 {[%clk 0:02:10]} 16. Be3 {[%clk 0:01:18]}  Nf6 {[%clk 0:02:02]} 17. Nd2 {[%clk 0:00:55]}  Bf5 {[%clk 0:01:59]} 18. c3 {[%clk 0:00:52]}  Nd5 {[%clk 0:01:58]} 19. Nf1 {[%clk 0:00:49]}  b6 {[%clk 0:01:46]} 20. Rad1 {[%clk 0:00:48]}  Bc2 {[%clk 0:01:35]} 21. R1d2 {[%clk 0:00:46]}  Bb1 {[%clk 0:01:35]} 22. a3 {[%clk 0:00:39]}  h6 {[%clk 0:01:32]} 23. h3 {[%clk 0:00:31]}  Bf5 {[%clk 0:01:21]} 24. c4 {[%clk 0:00:25]}  Nf6 {[%clk 0:01:16]} 25. c5 {[%clk 0:00:17]}  bxc5 {[%clk 0:01:05]} 26. Ra4 {[%clk 0:00:16]}  a5 {[%clk 0:00:50]} 27. Ng3 {[%clk 0:00:14]}  Be6 {[%clk 0:00:47]} 28. Bxc5 {[%clk 0:00:13]}  Bb3 {[%clk 0:00:47]} 29. Rf4 {[%clk 0:00:11]}  Re1+ {[%clk 0:00:46]} 30. Kh2 {[%clk 0:00:10]}  Bd5 {[%clk 0:00:44]} 31. Rfd4 {[%clk 0:00:09]}  Nd7 {[%clk 0:00:44]} 32. Bd6 {[%clk 0:00:08]}  Rae8 {[%clk 0:00:39]} 33. Nf5 {[%clk 0:00:08]}  Nf6 {[%clk 0:00:34]} 34. Ne3 {[%clk 0:00:07]}  Ne4 {[%clk 0:00:34]} 35. Nxd5 {[%clk 0:00:06]}  cxd5 {[%clk 0:00:33]} 36. Rxd5 {[%clk 0:00:05]}  Nxd2 {[%clk 0:00:33]} 37. Rxd2 {[%clk 0:00:04]}  R1e2 {[%clk 0:00:33]} 38. Rxe2 {[%clk 0:00:03]}  Rxe2 {[%clk 0:00:33]} 39. Bc7 {[%clk 0:00:04]}  a4 {[%clk 0:00:32]} 40. Ba5 {[%clk 0:00:03]}  Rxb2 {[%clk 0:00:31]} 41. Bb4 {[%clk 0:00:04]}  Rxb4 {[%clk 0:00:30]} 42. axb4 {[%clk 0:00:04]}  a3 {[%clk 0:00:31]} 43. b5 {[%clk 0:00:04]}  a2 {[%clk 0:00:31]} 44. b6 {[%clk 0:00:05]}  a1=Q {[%clk 0:00:31]} 45. b7 {[%clk 0:00:06]}  Qb1 {[%clk 0:00:31]} 46. b8=Q+ {[%clk 0:00:07]} 0-1


[Site "https://www.chess.com"]

[Event "Titled Tuesday Blitz October 11 Late 2022"]
[White "D`Arruda, Ricardo D."]
[Black "Kaganskiy, Gleb"]
[WhiteFideId "100692"]
[BlackFideId "4132025"]
[WhiteElo "2433"]
[BlackElo "2165"]
[Result "1-0"]
[Round "09"]
[TimeControl "180+1"]
[Date "2022.10.12"]
[WhiteClock "0:00:05"]
[BlackClock "0:00:05"]

1. Nf3 {[%clk 0:03:00]}  d5 {[%clk 0:02:17]} 2. b3 {[%clk 0:02:59]}  Nd7 {[%clk 0:02:04]} 3. Bb2 {[%clk 0:02:58]}  e6 {[%clk 0:02:00]} 4. e3 {[%clk 0:02:56]}  Ngf6 {[%clk 0:02:00]} 5. Be2 {[%clk 0:02:56]}  Bd6 {[%clk 0:01:59]} 6. O-O {[%clk 0:02:54]}  e5 {[%clk 0:01:59]} 7. c4 {[%clk 0:02:48]}  c6 {[%clk 0:01:58]} 8. Nc3 {[%clk 0:02:46]}  O-O {[%clk 0:01:56]} 9. cxd5 {[%clk 0:02:43]}  cxd5 {[%clk 0:01:56]} 10. Nb5 {[%clk 0:02:42]}  Bb8 {[%clk 0:01:55]} 11. Ba3 {[%clk 0:02:42]}  Re8 {[%clk 0:01:53]} 12. Nd6 {[%clk 0:02:36]}  Re6 {[%clk 0:01:42]} 13. Nxc8 {[%clk 0:02:35]}  Qxc8 {[%clk 0:01:43]} 14. Rc1 {[%clk 0:02:28]}  Qd8 {[%clk 0:01:39]} 15. Qc2 {[%clk 0:02:17]}  a6 {[%clk 0:01:28]} 16. Qc8 {[%clk 0:02:14]}  Qxc8 {[%clk 0:01:19]} 17. Rxc8+ {[%clk 0:02:12]}  Re8 {[%clk 0:01:19]} 18. Rfc1 {[%clk 0:02:02]}  Ba7 {[%clk 0:01:10]} 19. Rxa8 {[%clk 0:01:59]}  Rxa8 {[%clk 0:01:09]} 20. Rc7 {[%clk 0:01:53]}  e4 {[%clk 0:01:02]} 21. Nd4 {[%clk 0:01:41]}  Bxd4 {[%clk 0:01:01]} 22. exd4 {[%clk 0:01:42]}  b5 {[%clk 0:00:55]} 23. d3 {[%clk 0:01:37]}  Nf8 {[%clk 0:00:39]} 24. dxe4 {[%clk 0:01:26]}  Nxe4 {[%clk 0:00:40]} 25. f3 {[%clk 0:01:22]}  Ne6 {[%clk 0:00:34]} 26. Rc1 {[%clk 0:01:07]}  Nxd4 {[%clk 0:00:30]} 27. Bd3 {[%clk 0:01:07]}  Nf6 {[%clk 0:00:22]} 28. Bb2 {[%clk 0:01:06]}  Ne6 {[%clk 0:00:21]} 29. Rc6 {[%clk 0:01:04]}  d4 {[%clk 0:00:18]} 30. Bf5 {[%clk 0:01:00]}  Nf4 {[%clk 0:00:14]} 31. Kf1 {[%clk 0:00:56]}  Ne6 {[%clk 0:00:05]} 32. Bxe6 {[%clk 0:00:54]}  fxe6 {[%clk 0:00:06]} 33. Rxe6 {[%clk 0:00:51]}  Kf7 {[%clk 0:00:05]} 34. Rd6 {[%clk 0:00:51]}  Rc8 {[%clk 0:00:04]} 35. Bxd4 {[%clk 0:00:44]}  Rc2 {[%clk 0:00:05]} 36. Bxf6 {[%clk 0:00:44]}  gxf6 {[%clk 0:00:04]} 37. Rxa6 {[%clk 0:00:44]}  b4 {[%clk 0:00:05]} 38. h4 {[%clk 0:00:38]}  h5 {[%clk 0:00:04]} 39. Kg1 {[%clk 0:00:38]}  Kg6 {[%clk 0:00:04]} 40. Kh2 {[%clk 0:00:37]}  Rb2 {[%clk 0:00:02]} 41. Kg3 {[%clk 0:00:37]}  Rc2 {[%clk 0:00:03]} 42. Ra4 {[%clk 0:00:34]}  Rb2 {[%clk 0:00:03]} 43. Kh3 {[%clk 0:00:33]}  Rc2 {[%clk 0:00:03]} 44. Ra6 {[%clk 0:00:29]}  Kg7 {[%clk 0:00:01]} 45. g4 {[%clk 0:00:28]}  Rc3 {[%clk 0:00:01]} 46. Kg2 {[%clk 0:00:25]}  Rc2+ {[%clk 0:00:01]} 47. Kg3 {[%clk 0:00:25]}  Rc3 {[%clk 0:00:01]} 48. Kf4 {[%clk 0:00:25]}  hxg4 {[%clk 0:00:01]} 49. fxg4 {[%clk 0:00:26]}  Rc2 {[%clk 0:00:01]} 50. h5 {[%clk 0:00:22]}  Rd2 {[%clk 0:00:01]} 51. Ra7+ {[%clk 0:00:20]}  Kh6 {[%clk 0:00:01]} 52. Rf7 {[%clk 0:00:20]}  Rc2 {[%clk 0:00:01]} 53. Rxf6+ {[%clk 0:00:19]}  Kg7 {[%clk 0:00:02]} 54. Rg6+ {[%clk 0:00:19]}  Kh7 {[%clk 0:00:02]} 55. Ra6 {[%clk 0:00:19]}  Rb2 {[%clk 0:00:02]} 56. Kg5 {[%clk 0:00:18]}  Rf2 {[%clk 0:00:03]} 57. Ra7+ {[%clk 0:00:18]}  Kg8 {[%clk 0:00:03]} 58. Kg6 {[%clk 0:00:18]}  Rf8 {[%clk 0:00:03]} 59. Rg7+ {[%clk 0:00:17]}  Kh8 {[%clk 0:00:03]} 60. Rf7 {[%clk 0:00:17]}  Rd8 {[%clk 0:00:02]} 61. Rf4 {[%clk 0:00:13]}  Rd6+ {[%clk 0:00:03]} 62. Kf5 {[%clk 0:00:13]}  Rd5+ {[%clk 0:00:03]} 63. Ke6 {[%clk 0:00:13]}  Ra5 {[%clk 0:00:03]} 64. Rxb4 {[%clk 0:00:12]}  Rxa2 {[%clk 0:00:03]} 65. g5 {[%clk 0:00:13]}  Ra6+ {[%clk 0:00:03]} 66. Kf5 {[%clk 0:00:12]}  Ra5+ {[%clk 0:00:03]} 67. Kg4 {[%clk 0:00:11]}  Kg7 {[%clk 0:00:03]} 68. h6+ {[%clk 0:00:11]}  Kg6 {[%clk 0:00:03]} 69. Rb6+ {[%clk 0:00:11]}  Kh7 {[%clk 0:00:03]} 70. Kh5 {[%clk 0:00:11]}  Ra8 {[%clk 0:00:02]} 71. g6+ {[%clk 0:00:10]}  Kh8 {[%clk 0:00:02]} 72. b4 {[%clk 0:00:09]}  Rc8 {[%clk 0:00:01]} 73. Rb7 {[%clk 0:00:09]}  Rd8 {[%clk 0:00:02]} 74. Rh7+ {[%clk 0:00:08]}  Kg8 {[%clk 0:00:02]} 75. Rf7 {[%clk 0:00:06]}  Rd5+ {[%clk 0:00:02]} 76. Kg4 {[%clk 0:00:05]}  Rd4+ {[%clk 0:00:03]} 77. Kf5 {[%clk 0:00:06]}  Rxb4 {[%clk 0:00:04]} 78. h7+ {[%clk 0:00:05]}  Kh8 {[%clk 0:00:04]} 79. Rf8+ {[%clk 0:00:05]}  Kg7 {[%clk 0:00:05]} 80. h8=Q# {[%clk 0:00:05]} 1-0


[Site "https://www.chess.com"]

[Event "Titled Tuesday Blitz October 11 Late 2022"]
[White "Donchenko, Alexander"]
[Black "Kravtsiv, Martyn"]
[WhiteFideId "24603295"]
[BlackFideId "14113147"]
[WhiteElo "2572"]
[BlackElo "2694"]
[Result "1-0"]
[Round "09"]
[TimeControl "180+1"]
[Date "2022.10.11"]
[WhiteClock "0:00:13"]
[BlackClock "0:00:01"]

1. Nf3 {[%clk 0:03:00]}  d5 {[%clk 0:02:57]} 2. g3 {[%clk 0:03:00]}  g6 {[%clk 0:02:57]} 3. Bg2 {[%clk 0:03:01]}  Bg7 {[%clk 0:02:58]} 4. d4 {[%clk 0:03:01]}  Nf6 {[%clk 0:02:57]} 5. O-O {[%clk 0:03:02]}  c6 {[%clk 0:02:57]} 6. b3 {[%clk 0:03:01]}  O-O {[%clk 0:02:56]} 7. Bb2 {[%clk 0:03:02]}  Bf5 {[%clk 0:02:53]} 8. c4 {[%clk 0:03:01]}  Ne4 {[%clk 0:02:53]} 9. e3 {[%clk 0:03:01]}  Nd7 {[%clk 0:02:50]} 10. Qe2 {[%clk 0:03:00]}  a5 {[%clk 0:02:48]} 11. cxd5 {[%clk 0:03:00]}  cxd5 {[%clk 0:02:47]} 12. Qb5 {[%clk 0:03:01]}  Nd6 {[%clk 0:02:34]} 13. Qe2 {[%clk 0:02:49]}  a4 {[%clk 0:02:32]} 14. bxa4 {[%clk 0:02:45]}  Nb6 {[%clk 0:02:21]} 15. Nc3 {[%clk 0:02:43]}  Ne4 {[%clk 0:02:05]} 16. Ne5 {[%clk 0:02:35]}  Nxa4 {[%clk 0:01:52]} 17. Nxa4 {[%clk 0:02:34]}  Rxa4 {[%clk 0:01:50]} 18. Qb5 {[%clk 0:02:28]}  Ra6 {[%clk 0:01:41]} 19. Qe2 {[%clk 0:02:03]}  Qa8 {[%clk 0:01:32]} 20. a3 {[%clk 0:01:55]}  Rc8 {[%clk 0:01:30]} 21. Rfc1 {[%clk 0:01:54]}  Rb6 {[%clk 0:01:05]} 22. Rxc8+ {[%clk 0:01:50]}  Qxc8 {[%clk 0:01:06]} 23. Rc1 {[%clk 0:01:50]}  Qd8 {[%clk 0:00:57]} 24. a4 {[%clk 0:01:44]}  Rb4 {[%clk 0:00:53]} 25. h4 {[%clk 0:01:15]}  Qb6 {[%clk 0:00:41]} 26. Ba3 {[%clk 0:01:13]}  Rb1 {[%clk 0:00:41]} 27. Qe1 {[%clk 0:01:10]}  Rxc1 {[%clk 0:00:33]} 28. Qxc1 {[%clk 0:01:11]}  Bf6 {[%clk 0:00:33]} 29. g4 {[%clk 0:01:05]}  Be6 {[%clk 0:00:32]} 30. g5 {[%clk 0:01:04]}  Bxe5 {[%clk 0:00:29]} 31. dxe5 {[%clk 0:01:05]}  Kf8 {[%clk 0:00:26]} 32. Qc2 {[%clk 0:00:53]}  Qa5 {[%clk 0:00:24]} 33. Bxe4 {[%clk 0:00:49]}  dxe4 {[%clk 0:00:24]} 34. Qxe4 {[%clk 0:00:49]}  Bd5 {[%clk 0:00:23]} 35. Qb4 {[%clk 0:00:30]}  Qc7 {[%clk 0:00:24]} 36. Qd4 {[%clk 0:00:25]}  Bf3 {[%clk 0:00:15]} 37. e6 {[%clk 0:00:24]}  fxe6 {[%clk 0:00:08]} 38. Qh8+ {[%clk 0:00:22]}  Kf7 {[%clk 0:00:08]} 39. Qxh7+ {[%clk 0:00:22]}  Ke8 {[%clk 0:00:09]} 40. Qxg6+ {[%clk 0:00:22]}  Kd7 {[%clk 0:00:09]} 41. Qd3+ {[%clk 0:00:22]}  Kc8 {[%clk 0:00:09]} 42. g6 {[%clk 0:00:19]}  Qe5 {[%clk 0:00:09]} 43. Qc4+ {[%clk 0:00:13]}  Kd8 {[%clk 0:00:06]} 44. Qd4+ {[%clk 0:00:13]}  Qxd4 {[%clk 0:00:06]} 45. exd4 {[%clk 0:00:14]}  Ke8 {[%clk 0:00:05]} 46. Kh2 {[%clk 0:00:12]}  Bh5 {[%clk 0:00:06]} 47. g7 {[%clk 0:00:10]}  Kf7 {[%clk 0:00:06]} 48. Bxe7 {[%clk 0:00:11]}  Kxg7 {[%clk 0:00:06]} 49. Kg3 {[%clk 0:00:11]}  b6 {[%clk 0:00:06]} 50. Kf4 {[%clk 0:00:07]}  Bd1 {[%clk 0:00:06]} 51. Ke5 {[%clk 0:00:06]}  Kf7 {[%clk 0:00:07]} 52. Bd8 {[%clk 0:00:06]}  Bxa4 {[%clk 0:00:07]} 53. h5 {[%clk 0:00:07]}  Bc2 {[%clk 0:00:06]} 54. Bxb6 {[%clk 0:00:05]}  Bd1 {[%clk 0:00:05]} 55. h6 {[%clk 0:00:05]}  Bc2 {[%clk 0:00:06]} 56. Ba5 {[%clk 0:00:04]}  Bh7 {[%clk 0:00:06]} 57. Bd2 {[%clk 0:00:04]}  Bg6 {[%clk 0:00:06]} 58. Kd6 {[%clk 0:00:03]}  Bf5 {[%clk 0:00:06]} 59. Bg5 {[%clk 0:00:04]}  Be4 {[%clk 0:00:06]} 60. Ke5 {[%clk 0:00:04]}  Bg6 {[%clk 0:00:06]} 61. f3 {[%clk 0:00:04]}  Bh7 {[%clk 0:00:07]} 62. Bh4 {[%clk 0:00:04]}  Bg6 {[%clk 0:00:07]} 63. Bf2 {[%clk 0:00:05]}  Bd3 {[%clk 0:00:07]} 64. Be3 {[%clk 0:00:05]}  Bc2 {[%clk 0:00:07]} 65. Kf4 {[%clk 0:00:06]}  Bb1 {[%clk 0:00:07]} 66. Kg5 {[%clk 0:00:07]}  Bc2 {[%clk 0:00:07]} 67. Kg4 {[%clk 0:00:06]}  Bb1 {[%clk 0:00:07]} 68. Kf4 {[%clk 0:00:07]}  Bc2 {[%clk 0:00:07]} 69. Ke5 {[%clk 0:00:07]}  Bb1 {[%clk 0:00:08]} 70. f4 {[%clk 0:00:08]}  Bc2 {[%clk 0:00:08]} 71. Bf2 {[%clk 0:00:09]}  Bh7 {[%clk 0:00:07]} 72. Bh4 {[%clk 0:00:09]}  Bb1 {[%clk 0:00:06]} 73. Bf6 {[%clk 0:00:09]}  Bh7 {[%clk 0:00:05]} 74. Bg7 {[%clk 0:00:10]}  Bg6 {[%clk 0:00:04]} 75. Bf6 {[%clk 0:00:10]}  Bh7 {[%clk 0:00:04]} 76. Bg5 {[%clk 0:00:11]}  Bg6 {[%clk 0:00:04]} 77. f5 {[%clk 0:00:12]}  exf5 {[%clk 0:00:02]} 78. d5 {[%clk 0:00:12]}  Bh7 {[%clk 0:00:01]} 79. d6 {[%clk 0:00:13]} 1-0


[Site "https://www.chess.com"]